[Event "Titled Tuesday Blitz July 4 Early 2023"]
[White "Harsh Suresh"]
[Black "Richter, Paul"]
[WhiteFideId "45018464"]
[BlackFideId "2046350"]
[WhiteElo "2789"]
[BlackElo "2539"]
[Result "1-0"]
[Round "2"]
[TimeControl "180+2"]
[Date "2023.07.04"]
[WhiteClock "0:00:12"]
[BlackClock "0:00:00"]
[Board "62"]

1. e4 {[%clk 0:03:00]}  c5 {[%clk 0:02:59]} 2. Nc3 {[%clk 0:03:00]}  a6 {[%clk 0:02:58]} 3. g3 {[%clk 0:03:00]}  b5 {[%clk 0:02:58]} 4. Bg2 {[%clk 0:03:01]}  Bb7 {[%clk 0:02:59]} 5. Nge2 {[%clk 0:03:01]}  e6 {[%clk 0:02:57]} 6. O-O {[%clk 0:03:01]}  Nf6 {[%clk 0:02:52]} 7. d4 {[%clk 0:03:01]}  b4 {[%clk 0:02:50]} 8. Na4 {[%clk 0:03:01]}  Bxe4 {[%clk 0:02:46]} 9. Nxc5 {[%clk 0:02:47]}  Bxg2 {[%clk 0:02:43]} 10. Kxg2 {[%clk 0:02:48]}  Be7 {[%clk 0:02:19]} 11. Nd3 {[%clk 0:02:44]}  O-O {[%clk 0:02:15]} 12. a3 {[%clk 0:02:39]}  bxa3 {[%clk 0:02:10]} 13. b3 {[%clk 0:02:39]}  Nc6 {[%clk 0:02:06]} 14. Bxa3 {[%clk 0:02:39]}  d5 {[%clk 0:02:00]} 15. Bxe7 {[%clk 0:02:33]}  Qxe7 {[%clk 0:02:00]} 16. Qc1 {[%clk 0:02:34]}  Rfc8 {[%clk 0:01:57]} 17. Qa3 {[%clk 0:02:33]}  Qa7 {[%clk 0:01:42]} 18. c3 {[%clk 0:02:21]}  a5 {[%clk 0:01:28]} 19. Ra2 {[%clk 0:02:17]}  Qb6 {[%clk 0:01:24]} 20. Rb1 {[%clk 0:02:14]}  Rab8 {[%clk 0:01:03]} 21. Nc5 {[%clk 0:01:43]}  h6 {[%clk 0:00:59]} 22. Nf4 {[%clk 0:01:42]}  e5 {[%clk 0:00:53]} 23. dxe5 {[%clk 0:01:31]}  Nxe5 {[%clk 0:00:54]} 24. Na4 {[%clk 0:01:31]}  Qc6 {[%clk 0:00:40]} 25. Kh3 {[%clk 0:00:59]}  Qd7+ {[%clk 0:00:29]} 26. Kg2 {[%clk 0:00:59]}  Qc6 {[%clk 0:00:26]} 27. Kh3 {[%clk 0:00:59]}  Qd7+ {[%clk 0:00:26]} 28. Kg2 {[%clk 0:00:59]}  Qg4 {[%clk 0:00:23]} 29. Re1 {[%clk 0:00:33]}  Qf3+ {[%clk 0:00:22]} 30. Kg1 {[%clk 0:00:33]}  Neg4 {[%clk 0:00:20]} 31. Qb2 {[%clk 0:00:24]}  d4 {[%clk 0:00:19]} 32. cxd4 {[%clk 0:00:20]}  Rxb3 {[%clk 0:00:07]} 33. Qe2 {[%clk 0:00:20]}  Qxe2 {[%clk 0:00:06]} 34. Raxe2 {[%clk 0:00:21]}  Nd7 {[%clk 0:00:04]} 35. Nd5 {[%clk 0:00:20]}  Rcb8 {[%clk 0:00:03]} 36. Nc5 {[%clk 0:00:19]}  Nxc5 {[%clk 0:00:03]} 37. dxc5 {[%clk 0:00:20]}  Nf6 {[%clk 0:00:03]} 38. Nxf6+ {[%clk 0:00:16]}  gxf6 {[%clk 0:00:04]} 39. Rc2 {[%clk 0:00:16]}  Rc8 {[%clk 0:00:03]} 40. Re4 {[%clk 0:00:13]}  Rb5 {[%clk 0:00:02]} 41. Rg4+ {[%clk 0:00:13]}  Kf8 {[%clk 0:00:03]} 42. c6 {[%clk 0:00:13]}  Rb6 {[%clk 0:00:02]} 43. Rgc4 {[%clk 0:00:14]}  Ke7 {[%clk 0:00:02]} 44. Kg2 {[%clk 0:00:13]}  Rc7 {[%clk 0:00:02]} 45. h4 {[%clk 0:00:12]}  a4 {[%clk 0:00:02]} 46. Re4+ {[%clk 0:00:11]}  Kf8 {[%clk 0:00:02]} 47. Rxa4 {[%clk 0:00:11]}  Rbxc6 {[%clk 0:00:02]} 48. Re2 {[%clk 0:00:12]}  Kg7 {[%clk 0:00:02]} 49. Rg4+ {[%clk 0:00:11]}  Kh7 {[%clk 0:00:01]} 50. Rd2 {[%clk 0:00:11]}  Re6 {[%clk 0:00:01]} 51. Rd8 {[%clk 0:00:11]}  f5 {[%clk 0:00:02]} 52. Rgg8 {[%clk 0:00:11]}  Rg6 {[%clk 0:00:02]} 53. Rh8+ {[%clk 0:00:10]}  Kg7 {[%clk 0:00:03]} 54. h5 {[%clk 0:00:11]}  Rg5 {[%clk 0:00:03]} 55. Rdg8+ {[%clk 0:00:11]}  Kf6 {[%clk 0:00:00]} 56. Rxh6+ {[%clk 0:00:12]} 1-0


[Site "https://www.chess.com"]

[Event "Titled Tuesday Blitz July 4 Early 2023"]
[White "Rodchenkov, Sergey D."]
[Black "Kaasen, Tor Fredrik"]
[WhiteFideId "4168712"]
[BlackFideId "1516647"]
[WhiteElo "2536"]
[BlackElo "2784"]
[Result "0-1"]
[Round "2"]
[TimeControl "180+2"]
[Date "2023.07.04"]
[WhiteClock "0:00:07"]
[BlackClock "0:00:44"]
[Board "63"]

1. e4 {[%clk 0:03:00]}  c5 {[%clk 0:02:59]} 2. Nf3 {[%clk 0:03:01]}  e6 {[%clk 0:02:58]} 3. d4 {[%clk 0:03:02]}  cxd4 {[%clk 0:02:58]} 4. Nxd4 {[%clk 0:03:02]}  Nc6 {[%clk 0:02:58]} 5. Nc3 {[%clk 0:03:03]}  Qc7 {[%clk 0:02:59]} 6. a3 {[%clk 0:03:03]}  a6 {[%clk 0:02:53]} 7. f4 {[%clk 0:03:03]}  Nxd4 {[%clk 0:02:45]} 8. Qxd4 {[%clk 0:03:00]}  d6 {[%clk 0:02:37]} 9. g4 {[%clk 0:02:50]}  h6 {[%clk 0:02:34]} 10. h4 {[%clk 0:02:43]}  Nf6 {[%clk 0:02:34]} 11. Be2 {[%clk 0:02:32]}  e5 {[%clk 0:02:32]} 12. Qd1 {[%clk 0:02:26]}  exf4 {[%clk 0:02:27]} 13. Bxf4 {[%clk 0:02:24]}  Be6 {[%clk 0:02:28]} 14. Qd2 {[%clk 0:02:15]}  Nxg4 {[%clk 0:02:22]} 15. Bxg4 {[%clk 0:02:00]}  Bxg4 {[%clk 0:02:23]} 16. Nd5 {[%clk 0:01:58]}  Qd8 {[%clk 0:02:23]} 17. Rg1 {[%clk 0:01:20]}  h5 {[%clk 0:02:22]} 18. Bg5 {[%clk 0:01:08]}  f6 {[%clk 0:02:19]} 19. Be3 {[%clk 0:01:01]}  Rc8 {[%clk 0:02:18]} 20. Rxg4 {[%clk 0:00:55]}  hxg4 {[%clk 0:02:19]} 21. O-O-O {[%clk 0:00:55]}  Be7 {[%clk 0:02:16]} 22. Qg2 {[%clk 0:00:54]}  O-O {[%clk 0:02:00]} 23. Qxg4 {[%clk 0:00:48]}  Rf7 {[%clk 0:01:44]} 24. Rg1 {[%clk 0:00:30]}  Bf8 {[%clk 0:01:32]} 25. h5 {[%clk 0:00:26]}  Rc4 {[%clk 0:01:07]} 26. Qf5 {[%clk 0:00:22]}  Qe8 {[%clk 0:00:59]} 27. h6 {[%clk 0:00:15]}  Qxe4 {[%clk 0:00:57]} 28. Qxe4 {[%clk 0:00:04]}  Rxe4 {[%clk 0:00:58]} 29. hxg7 {[%clk 0:00:04]}  Bxg7 {[%clk 0:00:58]} 30. Bh6 {[%clk 0:00:01]}  Re5 {[%clk 0:00:51]} 31. Nf4 {[%clk 0:00:01]}  Kh7 {[%clk 0:00:48]} 32. Bxg7 {[%clk 0:00:02]}  Rxg7 {[%clk 0:00:49]} 33. Rh1+ {[%clk 0:00:03]}  Kg8 {[%clk 0:00:49]} 34. Kd2 {[%clk 0:00:04]}  Rg4 {[%clk 0:00:47]} 35. Nd3 {[%clk 0:00:04]}  Rg2+ {[%clk 0:00:45]} 36. Kc3 {[%clk 0:00:04]}  Ree2 {[%clk 0:00:46]} 37. Rh5 {[%clk 0:00:05]}  Rxc2+ {[%clk 0:00:46]} 38. Kd4 {[%clk 0:00:05]}  Rgd2 {[%clk 0:00:45]} 39. Rh4 {[%clk 0:00:05]}  Rxb2 {[%clk 0:00:44]} 40. Rg4+ {[%clk 0:00:06]}  Kf7 {[%clk 0:00:44]} 41. Rh4 {[%clk 0:00:06]}  Rb3 {[%clk 0:00:43]} 42. Rh7+ {[%clk 0:00:07]}  Kg6 {[%clk 0:00:44]} 43. Ke4 {[%clk 0:00:07]}  Rbxd3 {[%clk 0:00:44]} 0-1


[Site "https://www.chess.com"]

[Event "Titled Tuesday Blitz July 4 Early 2023"]
[White "Gavrilov, Maxim"]
[Black "Milikow, Yoav"]
[WhiteFideId "24271454"]
[BlackFideId "2822237"]
[WhiteElo "2534"]
[BlackElo "2780"]
[Result "1-0"]
[Round "2"]
[TimeControl "180+2"]
[Date "2023.07.04"]
[WhiteClock "0:00:22"]
[BlackClock "0:00:12"]
[Board "64"]

1. d4 {[%clk 0:02:56]}  d5 {[%clk 0:02:59]} 2. c4 {[%clk 0:02:56]}  e6 {[%clk 0:02:59]} 3. Nc3 {[%clk 0:02:56]}  Nf6 {[%clk 0:02:57]} 4. cxd5 {[%clk 0:02:55]}  exd5 {[%clk 0:02:58]} 5. Bg5 {[%clk 0:02:54]}  Bb4 {[%clk 0:02:58]} 6. Nf3 {[%clk 0:02:53]}  O-O {[%clk 0:02:54]} 7. e3 {[%clk 0:02:52]}  Bf5 {[%clk 0:02:54]} 8. Qb3 {[%clk 0:02:52]}  Bxc3+ {[%clk 0:02:31]} 9. bxc3 {[%clk 0:02:53]}  Nbd7 {[%clk 0:02:27]} 10. Qxb7 {[%clk 0:02:51]}  Rb8 {[%clk 0:02:27]} 11. Qa6 {[%clk 0:02:46]}  Rb2 {[%clk 0:02:23]} 12. Bb5 {[%clk 0:02:33]}  c6 {[%clk 0:02:08]} 13. Qxc6 {[%clk 0:02:24]}  Qb8 {[%clk 0:01:59]} 14. a4 {[%clk 0:02:00]}  Ne4 {[%clk 0:01:16]} 15. O-O {[%clk 0:01:51]}  Nb6 {[%clk 0:01:04]} 16. Bf4 {[%clk 0:01:29]}  Qd8 {[%clk 0:01:04]} 17. Bc7 {[%clk 0:01:16]}  Qe7 {[%clk 0:00:57]} 18. Bxb6 {[%clk 0:01:16]}  axb6 {[%clk 0:00:58]} 19. Qxb6 {[%clk 0:01:13]}  Nxc3 {[%clk 0:00:55]} 20. Qc5 {[%clk 0:01:07]}  Qxc5 {[%clk 0:00:50]} 21. dxc5 {[%clk 0:01:08]}  Nxb5 {[%clk 0:00:49]} 22. axb5 {[%clk 0:01:09]}  Bd3 {[%clk 0:00:49]} 23. Rfd1 {[%clk 0:01:07]}  Bxb5 {[%clk 0:00:48]} 24. Rxd5 {[%clk 0:01:06]}  Bc6 {[%clk 0:00:46]} 25. Rd6 {[%clk 0:01:05]}  Rfb8 {[%clk 0:00:44]} 26. h3 {[%clk 0:00:55]}  Be4 {[%clk 0:00:44]} 27. Rc1 {[%clk 0:00:52]}  Kf8 {[%clk 0:00:39]} 28. c6 {[%clk 0:00:49]}  Rb1 {[%clk 0:00:39]} 29. Rdd1 {[%clk 0:00:49]}  Rxc1 {[%clk 0:00:26]} 30. Rxc1 {[%clk 0:00:50]}  Ke7 {[%clk 0:00:25]} 31. Nd4 {[%clk 0:00:48]}  Rc8 {[%clk 0:00:24]} 32. f3 {[%clk 0:00:46]}  Bd5 {[%clk 0:00:24]} 33. e4 {[%clk 0:00:46]}  Ba2 {[%clk 0:00:23]} 34. Kf2 {[%clk 0:00:45]}  Kd6 {[%clk 0:00:22]} 35. Ke3 {[%clk 0:00:41]}  g6 {[%clk 0:00:23]} 36. c7 {[%clk 0:00:38]}  Kd7 {[%clk 0:00:21]} 37. Nb5 {[%clk 0:00:37]}  Bb3 {[%clk 0:00:20]} 38. Kd4 {[%clk 0:00:26]}  f6 {[%clk 0:00:19]} 39. Kc5 {[%clk 0:00:26]}  Ba4 {[%clk 0:00:17]} 40. Kb6 {[%clk 0:00:24]}  Re8 {[%clk 0:00:17]} 41. Na7 {[%clk 0:00:22]}  Re6+ {[%clk 0:00:12]} 42. Kb7 {[%clk 0:00:22]} 1-0


[Site "https://www.chess.com"]

[Event "Titled Tuesday Blitz July 4 Early 2023"]
[White "Brunner, Nicolas"]
[Black "Tristan, Leonardo"]
[WhiteFideId "620246"]
[BlackFideId "113816"]
[WhiteElo "2534"]
[BlackElo "2771"]
[Result "0-1"]
[Round "2"]
[TimeControl "180+2"]
[Date "2023.07.04"]
[WhiteClock "0:00:00"]
[BlackClock "0:00:08"]
[Board "66"]

1. Nf3 {[%clk 0:03:00]}  d5 {[%clk 0:03:00]} 2. g3 {[%clk 0:03:00]}  Nf6 {[%clk 0:03:00]} 3. Bg2 {[%clk 0:03:01]}  Bf5 {[%clk 0:03:00]} 4. O-O {[%clk 0:03:00]}  e6 {[%clk 0:03:00]} 5. d3 {[%clk 0:03:00]}  Be7 {[%clk 0:03:01]} 6. c4 {[%clk 0:02:57]}  c6 {[%clk 0:03:00]} 7. cxd5 {[%clk 0:02:56]}  exd5 {[%clk 0:03:00]} 8. Nc3 {[%clk 0:02:56]}  O-O {[%clk 0:03:00]} 9. Nd4 {[%clk 0:02:53]}  Bg6 {[%clk 0:02:58]} 10. e4 {[%clk 0:02:53]}  dxe4 {[%clk 0:02:57]} 11. dxe4 {[%clk 0:02:53]}  Nbd7 {[%clk 0:02:58]} 12. Bf4 {[%clk 0:02:46]}  Qb6 {[%clk 0:02:53]} 13. Nb3 {[%clk 0:02:37]}  Rad8 {[%clk 0:02:48]} 14. Qe2 {[%clk 0:02:35]}  Rfe8 {[%clk 0:02:47]} 15. Rad1 {[%clk 0:02:34]}  Bb4 {[%clk 0:02:36]} 16. Be3 {[%clk 0:02:27]}  Qc7 {[%clk 0:02:34]} 17. f3 {[%clk 0:02:27]}  Ne5 {[%clk 0:02:23]} 18. Bg5 {[%clk 0:02:24]}  Be7 {[%clk 0:02:19]} 19. Kh1 {[%clk 0:02:19]}  h6 {[%clk 0:02:18]} 20. Be3 {[%clk 0:02:16]}  b5 {[%clk 0:02:11]} 21. Bc5 {[%clk 0:02:09]}  Nc4 {[%clk 0:02:04]} 22. Qf2 {[%clk 0:01:57]}  Bxc5 {[%clk 0:02:00]} 23. Nxc5 {[%clk 0:01:57]}  Qb6 {[%clk 0:01:48]} 24. b3 {[%clk 0:01:49]}  Ne5 {[%clk 0:01:48]} 25. b4 {[%clk 0:01:47]}  a5 {[%clk 0:01:47]} 26. a3 {[%clk 0:01:47]}  axb4 {[%clk 0:01:48]} 27. axb4 {[%clk 0:01:47]}  Ra8 {[%clk 0:01:48]} 28. Ra1 {[%clk 0:01:29]}  Rxa1 {[%clk 0:01:45]} 29. Rxa1 {[%clk 0:01:29]}  Nfd7 {[%clk 0:01:35]} 30. Ra6 {[%clk 0:01:21]}  Qd8 {[%clk 0:01:27]} 31. Nb7 {[%clk 0:00:58]}  Qc8 {[%clk 0:01:22]} 32. Ra7 {[%clk 0:00:55]}  Qb8 {[%clk 0:01:20]} 33. Na5 {[%clk 0:00:38]}  c5 {[%clk 0:01:18]} 34. Rb7 {[%clk 0:00:34]}  Qd6 {[%clk 0:01:12]} 35. Nxb5 {[%clk 0:00:29]}  Qd1+ {[%clk 0:01:11]} 36. Qf1 {[%clk 0:00:27]}  Qxf1+ {[%clk 0:01:11]} 37. Bxf1 {[%clk 0:00:27]}  cxb4 {[%clk 0:01:11]} 38. Nd6 {[%clk 0:00:22]}  Ra8 {[%clk 0:01:08]} 39. Nac4 {[%clk 0:00:17]}  Ra1 {[%clk 0:00:58]} 40. Kg2 {[%clk 0:00:17]}  Ra2+ {[%clk 0:00:58]} 41. Kh3 {[%clk 0:00:15]}  Rf2 {[%clk 0:00:34]} 42. Bg2 {[%clk 0:00:13]}  Nxc4 {[%clk 0:00:29]} 43. Nxc4 {[%clk 0:00:12]}  Nc5 {[%clk 0:00:20]} 44. Rxb4 {[%clk 0:00:12]}  Nd3 {[%clk 0:00:21]} 45. Rb8+ {[%clk 0:00:12]}  Kh7 {[%clk 0:00:21]} 46. Ne3 {[%clk 0:00:09]}  Re2 {[%clk 0:00:21]} 47. Ng4 {[%clk 0:00:08]}  h5 {[%clk 0:00:14]} 48. Bf1 {[%clk 0:00:05]}  hxg4+ {[%clk 0:00:13]} 49. Kxg4 {[%clk 0:00:05]}  Re3 {[%clk 0:00:10]} 50. h4 {[%clk 0:00:04]}  Ne5+ {[%clk 0:00:10]} 51. Kg5 {[%clk 0:00:04]}  Rxf3 {[%clk 0:00:06]} 52. h5 {[%clk 0:00:04]}  f6+ {[%clk 0:00:07]} 53. Kh4 {[%clk 0:00:04]}  Rxf1 {[%clk 0:00:07]} 54. hxg6+ {[%clk 0:00:00]}  Kxg6 {[%clk 0:00:08]} 0-1


[Site "https://www.chess.com"]

[Event "Titled Tuesday Blitz July 4 Early 2023"]
[White "Karamsetty, Jeevan"]
[Black "Dvirnyy, Danyyil"]
[WhiteFideId "2025337"]
[BlackFideId "817570"]
[WhiteElo "2533"]
[BlackElo "2766"]
[Result "1/2-1/2"]
[Round "2"]
[TimeControl "180+2"]
[Date "2023.07.04"]
[WhiteClock "0:00:14"]
[BlackClock "0:00:04"]
[Board "67"]

1. e4 {[%clk 0:03:00]}  d6 {[%clk 0:03:00]} 2. d4 {[%clk 0:03:00]}  Nf6 {[%clk 0:03:00]} 3. Bd3 {[%clk 0:02:58]}  e5 {[%clk 0:03:00]} 4. c3 {[%clk 0:02:58]}  Nc6 {[%clk 0:03:00]} 5. Ne2 {[%clk 0:02:53]}  d5 {[%clk 0:02:49]} 6. exd5 {[%clk 0:02:46]}  Qxd5 {[%clk 0:02:49]} 7. O-O {[%clk 0:02:44]}  exd4 {[%clk 0:02:47]} 8. cxd4 {[%clk 0:02:39]}  Bd6 {[%clk 0:02:45]} 9. Nbc3 {[%clk 0:02:36]}  Qh5 {[%clk 0:02:45]} 10. Nf4 {[%clk 0:02:25]}  Qxd1 {[%clk 0:02:35]} 11. Rxd1 {[%clk 0:02:24]}  Nxd4 {[%clk 0:02:36]} 12. Bb5+ {[%clk 0:02:02]}  Nxb5 {[%clk 0:02:03]} 13. Nxb5 {[%clk 0:02:03]}  O-O {[%clk 0:02:03]} 14. Nxd6 {[%clk 0:01:59]}  Rd8 {[%clk 0:01:57]} 15. Be3 {[%clk 0:01:43]}  cxd6 {[%clk 0:01:55]} 16. Bd4 {[%clk 0:01:32]}  Ne8 {[%clk 0:01:52]} 17. Rac1 {[%clk 0:01:23]}  Bd7 {[%clk 0:01:50]} 18. Nd5 {[%clk 0:01:21]}  Be6 {[%clk 0:01:42]} 19. Be3 {[%clk 0:01:08]}  Bxd5 {[%clk 0:01:35]} 20. Rxd5 {[%clk 0:01:09]}  Rac8 {[%clk 0:01:35]} 21. Rcd1 {[%clk 0:01:07]}  a6 {[%clk 0:01:25]} 22. h4 {[%clk 0:01:04]}  Rc2 {[%clk 0:01:21]} 23. Bd4 {[%clk 0:01:02]}  Nc7 {[%clk 0:01:16]} 24. Rg5 {[%clk 0:01:02]}  Ne6 {[%clk 0:01:14]} 25. Bf6 {[%clk 0:00:51]}  Nxg5 {[%clk 0:00:53]} 26. Bxd8 {[%clk 0:00:50]}  Ne6 {[%clk 0:00:52]} 27. Rxd6 {[%clk 0:00:43]}  Rxb2 {[%clk 0:00:51]} 28. a4 {[%clk 0:00:43]}  Rb4 {[%clk 0:00:42]} 29. a5 {[%clk 0:00:40]}  Rd4 {[%clk 0:00:42]} 30. Rxd4 {[%clk 0:00:30]}  Nxd4 {[%clk 0:00:43]} 31. g3 {[%clk 0:00:29]}  f5 {[%clk 0:00:40]} 32. Kg2 {[%clk 0:00:28]}  Kf7 {[%clk 0:00:40]} 33. Bb6 {[%clk 0:00:28]}  Nc6 {[%clk 0:00:40]} 34. Kf3 {[%clk 0:00:28]}  Ke6 {[%clk 0:00:41]} 35. Kf4 {[%clk 0:00:29]}  Ne5 {[%clk 0:00:40]} 36. Bd4 {[%clk 0:00:24]}  Nc6 {[%clk 0:00:40]} 37. Bb6 {[%clk 0:00:23]}  g6 {[%clk 0:00:37]} 38. Kg5 {[%clk 0:00:23]}  Kf7 {[%clk 0:00:36]} 39. Kh6 {[%clk 0:00:22]}  Kg8 {[%clk 0:00:36]} 40. h5 {[%clk 0:00:21]}  Ne5 {[%clk 0:00:34]} 41. hxg6 {[%clk 0:00:19]}  hxg6 {[%clk 0:00:33]} 42. Bc7 {[%clk 0:00:17]}  Ng4+ {[%clk 0:00:08]} 43. Kxg6 {[%clk 0:00:17]}  Nxf2 {[%clk 0:00:07]} 44. Kxf5 {[%clk 0:00:17]}  Kf7 {[%clk 0:00:06]} 45. Ke5 {[%clk 0:00:15]}  Ke7 {[%clk 0:00:04]} 46. Kd5 {[%clk 0:00:15]}  Kd7 {[%clk 0:00:04]} 47. Bb6 {[%clk 0:00:13]}  Ng4 {[%clk 0:00:04]} 48. Ke4 {[%clk 0:00:12]}  Ke6 {[%clk 0:00:05]} 49. Kf4 {[%clk 0:00:13]}  Nf6 {[%clk 0:00:05]} 50. Kg5 {[%clk 0:00:12]}  Ne4+ {[%clk 0:00:05]} 51. Kf4 {[%clk 0:00:13]}  Nf6 {[%clk 0:00:04]} 52. Kg5 {[%clk 0:00:13]}  Ne4+ {[%clk 0:00:04]} 53. Kf4 {[%clk 0:00:14]}  Nf6 {[%clk 0:00:04]} 1/2-1/2


[Site "https://www.chess.com"]

[Event "Titled Tuesday Blitz July 4 Early 2023"]
[White "Cabarkapa, Novak"]
[Black "Demin, Vladimir"]
[WhiteFideId "943746"]
[BlackFideId "4167457"]
[WhiteElo "2765"]
[BlackElo "2533"]
[Result "1-0"]
[Round "2"]
[TimeControl "180+2"]
[Date "2023.07.04"]
[WhiteClock "0:00:18"]
[BlackClock "0:00:20"]
[Board "68"]

1. e4 {[%clk 0:03:00]}  e5 {[%clk 0:03:00]} 2. Nf3 {[%clk 0:03:00]}  Nc6 {[%clk 0:03:00]} 3. Bc4 {[%clk 0:03:01]}  Bc5 {[%clk 0:02:59]} 4. c3 {[%clk 0:03:01]}  Nf6 {[%clk 0:02:59]} 5. d3 {[%clk 0:03:02]}  d6 {[%clk 0:02:53]} 6. Bb3 {[%clk 0:03:01]}  a6 {[%clk 0:02:50]} 7. h3 {[%clk 0:02:59]}  Ba7 {[%clk 0:02:49]} 8. Nbd2 {[%clk 0:02:57]}  Ne7 {[%clk 0:02:46]} 9. Nf1 {[%clk 0:02:55]}  Ng6 {[%clk 0:02:47]} 10. Ng3 {[%clk 0:02:56]}  Nf4 {[%clk 0:02:45]} 11. Bxf4 {[%clk 0:02:47]}  exf4 {[%clk 0:02:46]} 12. Ne2 {[%clk 0:02:47]}  Nh5 {[%clk 0:02:44]} 13. d4 {[%clk 0:02:46]}  Be6 {[%clk 0:02:40]} 14. Bxe6 {[%clk 0:02:45]}  fxe6 {[%clk 0:02:41]} 15. Qb3 {[%clk 0:02:46]}  Qe7 {[%clk 0:02:30]} 16. Qxb7 {[%clk 0:02:43]}  O-O {[%clk 0:02:30]} 17. Qb3 {[%clk 0:02:41]}  Rab8 {[%clk 0:02:27]} 18. Qc2 {[%clk 0:02:40]}  e5 {[%clk 0:02:25]} 19. O-O-O {[%clk 0:02:31]}  Nf6 {[%clk 0:02:12]} 20. Rhe1 {[%clk 0:02:29]}  Qe6 {[%clk 0:02:10]} 21. Kb1 {[%clk 0:02:23]}  Rb7 {[%clk 0:02:07]} 22. Nc1 {[%clk 0:02:22]}  Rfb8 {[%clk 0:02:06]} 23. Nd3 {[%clk 0:02:09]}  Qc4 {[%clk 0:01:55]} 24. b3 {[%clk 0:01:43]}  Qc6 {[%clk 0:01:50]} 25. Nb2 {[%clk 0:01:36]}  Re8 {[%clk 0:01:33]} 26. dxe5 {[%clk 0:01:32]}  dxe5 {[%clk 0:01:33]} 27. Rd2 {[%clk 0:01:27]}  h6 {[%clk 0:01:30]} 28. Ka1 {[%clk 0:01:25]}  a5 {[%clk 0:01:28]} 29. Qd3 {[%clk 0:01:15]}  Kh7 {[%clk 0:01:23]} 30. Qc4 {[%clk 0:01:13]}  Qb6 {[%clk 0:01:19]} 31. Qa4 {[%clk 0:01:07]}  Qc5 {[%clk 0:01:14]} 32. Qc4 {[%clk 0:01:01]}  Qa3 {[%clk 0:01:10]} 33. Red1 {[%clk 0:00:51]}  Rbb8 {[%clk 0:00:59]} 34. Qa4 {[%clk 0:00:46]}  Qc5 {[%clk 0:00:58]} 35. Qc4 {[%clk 0:00:46]}  Qa3 {[%clk 0:00:58]} 36. Qxc7 {[%clk 0:00:41]}  Bb6 {[%clk 0:00:57]} 37. Qc4 {[%clk 0:00:38]}  Rbc8 {[%clk 0:00:55]} 38. Qb5 {[%clk 0:00:36]}  Ba7 {[%clk 0:00:54]} 39. Nc4 {[%clk 0:00:34]}  Qf8 {[%clk 0:00:49]} 40. Nd6 {[%clk 0:00:33]}  Rb8 {[%clk 0:00:48]} 41. Qxa5 {[%clk 0:00:32]}  Bb6 {[%clk 0:00:48]} 42. Qa4 {[%clk 0:00:30]}  Red8 {[%clk 0:00:47]} 43. Nxe5 {[%clk 0:00:29]}  Ra8 {[%clk 0:00:42]} 44. Qc6 {[%clk 0:00:28]}  Ba5 {[%clk 0:00:34]} 45. b4 {[%clk 0:00:27]}  Qg8 {[%clk 0:00:30]} 46. bxa5 {[%clk 0:00:26]}  Rxa5 {[%clk 0:00:30]} 47. Ndf7 {[%clk 0:00:23]}  Rda8 {[%clk 0:00:30]} 48. Qe6 {[%clk 0:00:21]}  Qb8 {[%clk 0:00:27]} 49. Qf5+ {[%clk 0:00:18]}  Kg8 {[%clk 0:00:27]} 50. Nxh6+ {[%clk 0:00:18]}  gxh6 {[%clk 0:00:25]} 51. Qg6+ {[%clk 0:00:19]}  Kh8 {[%clk 0:00:20]} 52. Nf7# {[%clk 0:00:18]} 1-0


[Site "https://www.chess.com"]